Cogmind - Beta 9.6 @@@ ROGUE MODE // 2020.06.25 @ 13:59:24 Player: Vectis Result: Destroyed by 8R-AWN with 8R-AWN's Boregun Performance ------------- Evolutions (1) 500 Regions Visited (5) 1000 Robots Destroyed (78) 390 Value Destroyed (1587) 1587 Prototype IDs (4) 80 Alien Tech Used (0) 0 Bonus (-392) -392 TOTAL SCORE: 3165 Bonus ------- Follower Combat Kills 92 Friendly Fire -484 Cogmind --------- Core Integrity 0/400 Matter 290/300 Energy 83/100 System Corruption 3% Temperature Cool (1) Movement Treading (160) Location -9/Exiles Parts ------- > --- POWER (1) -------- (None) > --- PROPULSION (2) --- Light Treads > --- UTILITY (4) ------ Large Storage Unit > --- WEAPON (2) ------- Makeshift Sword > --- INVENTORY (10) --- Light Treads Wheel Improved Heat Sink Shock Bomb Launcher Grenade Launcher Peak State ------------ > --- POWER ------------ Light Angular Momentum Engine > --- PROPULSION ------- Light Treads Light Treads > --- UTILITY ---------- Improved Heat Sink Medium Storage Unit Large Storage Unit High-capacity Storage Unit > --- WEAPON ----------- Improved Assault Rifle Improved Light Cannon > --- INVENTORY -------- Light Nuclear Core Light Treads Wheel Wheel Compact Wheel Improved Heat Sink Small Storage Unit Medium Storage Unit Improved Trap Extractor EM Pulse Gun EM Shotgun Beam Rifle Light Assault Rifle Light Assault Rifle Heavy Assault Rifle Autogun Improved Assault Rifle Improved Assault Rifle Shock Bomb Launcher Grenade Launcher Makeshift Sword [Rating: 22] Favorites ----------- Power Improved Ion Engine Engine Improved Ion Engine Power Core Light Nuclear Core Propulsion Light Treads Treads Light Treads Wheel Compact Wheel Utility Large Storage Unit Device Improved Heat Sink Storage Large Storage Unit Protection Light Armor Plating Weapon Assault Rifle Energy Gun Particle Gun Energy Cannon Advanced Beam Cannon Ballistic Gun Assault Rifle Ballistic Cannon Improved Light Cannon Launcher Grenade Launcher Special Weapon Plasma Cutter Slashing Weapon Makeshift Sword Build | -11 -10 -10 -9 -9 -9 ------- Run | Scr Mat Min Mat Min Exi Slots Evolved 2 | . . . 2 . . Power . | . . . . . . Propulsion . | . . . . . . Utility 2 | . . . 2 . . Weapon . | . . . . . . Parts Attached 54 | 7 1 3 28 1 14 Power 6 | 1 . 1 2 . 2 Engine 5 | 1 . 1 2 . 1 Core 1 | . . . . . 1 Reactor . | . . . . . . Propulsion 10 | 2 . . 7 . 1 Treads 8 | 2 . . 5 . 1 Leg . | . . . . . . Wheel 2 | . . . 2 . . Hover . | . . . . . . Flight . | . . . . . . Utility 13 | 2 1 1 4 1 4 Device 1 | . . . 1 . . Storage 9 | 2 1 1 2 1 2 Processor . | . . . . . . Hackware . | . . . . . . Protection 3 | . . . 1 . 2 Artifact . | . . . . . . Weapon 25 | 2 . 1 15 . 7 Energy Gun 8 | . . . 4 . 4 Energy Cannon 3 | . . . 3 . . Ballistic Gun 7 | 2 . 1 4 . . Ballistic Cannon 1 | . . . 1 . . Launcher 3 | . . . 1 . 2 Special Weapon 2 | . . . 2 . . Impact Weapon . | . . . . . . Slashing Weapon 1 | . . . . . 1 Piercing Weapon . | . . . . . . Special Melee Weapon . | . . . . . . Unidentified Prototypes 4 | . . . 4 . . Parts Lost 20 | . . . 8 . 12 Power 4 | . . . 1 . 3 Propulsion 4 | . . . 2 . 2 Utility 3 | . . . . . 3 Weapon 9 | . . . 5 . 4 Highest Loss Streak 12 | . . . 3 . 12 Average Slot Usage (%) 94 | . 100 100 96 100 77 Engine 12 | . 14 14 10 11 10 Treads 22 | . 28 28 16 22 20 Wheel 1 | . . . 3 . . Device 6 | . . . 10 11 9 Storage 28 | . 28 28 29 33 28 Protection 1 | . . . 3 . 2 Energy Gun 1 | . . . 3 . 1 Energy Cannon 5 | . . . 9 22 2 Ballistic Gun 13 | . 28 28 7 . . Naked Turns . | . . . . . . Heaviest Build 88 | 16 28 32 73 72 88 Greatest Support 40 | 40 40 40 40 40 40 Greatest Overweight (x) 4 | . . . 4 1 2 Average Overweight (x) . | . . . 1 1 1 Largest Inventory Capacity 26 | 8 12 14 22 22 26 Average Capacity 16 | 5 9 13 19 22 22 Most Carried 26 | 4 11 14 22 22 26 Average Carried 15 | 3 7 13 18 21 20 Final Capacity 22 | 8 12 14 22 22 10 Final Carried 22 | 4 11 14 22 22 5 Class Distribution -------------------- 55% | Mutant 42% | Hauler-Mutant Dominant Class ---------------- Mutant | -10/Materials Mutant | -10/Mines Hauler-Mutant | -9/Materials Hauler-Mutant | -9/Mines Hauler-Mutant | -9/Exiles Resources | -11 -10 -10 -9 -9 -9 ----------- Run | Scr Mat Min Mat Min Exi Matter Collected 1345 | 298 166 86 589 18 188 Remotely . | . . . . . . Salvage Created 2523 | 100 469 137 1754 40 23 Parts 160 | 6 28 9 111 6 . Haulers Intercepted 5 | . . . 5 . . Recyclers Shooed 1 | . . . 1 . . Parts Field Recycled . | . . . . . . Retrieved Matter . | . . . . . . Parts Self-Destructed . | . . . . . . Prevented . | . . . . . . Kills | -11 -10 -10 -9 -9 -9 ------- Run | Scr Mat Min Mat Min Exi Combat Hostiles Destroyed 49 | . 11 5 27 3 3 Guns 22 | . 11 5 6 . . Cannons 22 | . . . 19 3 . AOE 5 | . . . 2 . 3 Classes Destroyed 12 | 2 4 . 5 . 1 Worker 6 | . 2 . 4 . . Builder 2 | . . . 2 . . Tunneler 1 | 1 . . . . . Hauler 5 | . . . 5 . . Recycler 6 | 1 . . 5 . . Operator 2 | . 1 . 1 . . Watcher 5 | . . . 5 . . Swarmer 15 | . 3 3 6 3 . Grunt 23 | . 8 2 13 . . Duelist 3 | . . . 3 . . Sentry 5 | . . . 5 . . Assembled 5 | . . . . . 5 Best Kill Streak 7 | 2 7 3 7 3 3 Combat Bots Only 5 | . 5 3 4 3 3 Max Kills in Single Turn 2 | 1 1 2 2 1 2 Gunslinging 1 | . . 1 . . . Exploded 2 | . . . 1 . 2 Melee . | . . . . . . Uniques/NPCs Destroyed 1 | . . . . . 1 EX-HEX (-9/Exiles) Combat | -11 -10 -10 -9 -9 -9 -------- Run | Scr Mat Min Mat Min Exi Damage Taken 2835 | . 373 144 1146 69 1103 Core 500 | . 79 15 195 10 201 Absorbed by Shields . | . . . . . . Core Remaining (%) 81 | 100 . 62 . . . Volleys Fired 211 | 7 39 14 104 5 42 Largest 2 | 2 2 2 2 2 2 Hottest 136 | 40 40 40 136 136 100 Shots Fired 386 | 14 78 28 200 10 56 Gun 260 | 14 78 28 89 . 51 Cannon 118 | . . . 108 10 . Launcher 7 | . . . 2 . 5 Special 1 | . . . 1 . . Kinetic 207 | 14 78 28 87 . . Thermal 121 | . . . 111 10 . Explosive 4 | . . . 2 . 2 Electromagnetic 54 | . . . . . 54 Robot Hit Streak 19 | 5 15 11 19 5 16 Robot Miss Streak 8 | 2 3 2 8 3 3 Penetration Max . | . . . . . . Secondary Targets 3 | . 1 2 . . . Max Gunslinging Chain 1 | . 1 1 . . . Shots Hit Robots 286 | 10 54 23 136 4 59 Core Hits 127 | 3 27 9 60 3 25 Critical Hits 11 | . 1 1 4 3 2 Critical Kills 3 | . . 1 1 1 . Critical Parts Destroyed 7 | . 1 . 3 2 1 Melee Attacks 16 | . . . . . 16 Impact . | . . . . . . Slashing 16 | . . . . . 16 Piercing . | . . . . . . Sneak Attacks . | . . . . . . Combat Hostiles . | . . . . . . Follow-up Attacks . | . . . . . . Damage Inflicted 4617 | 107 612 227 2648 181 842 Guns 2004 | 107 612 227 995 . 63 Cannons 1602 | . . . 1421 181 . Explosions 626 | . . . 220 . 406 Melee 373 | . . . . . 373 Ramming . | . . . . . . Kinetic 1964 | 107 612 227 1018 . . Thermal 1591 | . . . 1410 181 . Explosive 464 | . . . 220 . 244 Electromagnetic 225 | . . . . . 225 Impact . | . . . . . . Slashing 373 | . . . . . 373 Piercing . | . . . . . . Highest Corruption 3 | . . . 3 3 3 Average Corruption 3 | . . . 3 3 3 Corruption Purged . | . . . . . . Effects 49 | . . . 20 12 17 Message Errors 15 | . . . 3 6 6 Matter Fused 8 | . . . 3 2 3 Heat Flow Errors 10 | . . . 4 2 4 Energy Discharges 4 | . . . 2 . 2 Data Loss (minor) 3 | . . . 1 1 1 Targeting Errors 8 | . . . 6 1 1 Weapon Failures 1 | . . . 1 . . Overload Shots . | . . . . . . Overflow Damage 21 | . . . 21 . . Projectiles 21 | . . . 21 . . Explosions . | . . . . . . Melee . | . . . . . . Knockbacks 3 | . . . 3 . . Impact . | . . . . . . Kinetic 2 | . . . 2 . . Secondary 1 | . . . 1 . . Self-Inflicted Damage 16 | . . . 16 . . Shots 1 | . . . 1 . . Rammed . | . . . . . . Targets Rammed . | . . . . . . Kicked . | . . . . . . Crushed . | . . . . . . Highest Temperature 264 | . 12 9 264 177 239 Average Temperature 60 | . 7 9 57 51 81 Received Heat Transfer 537 | . 165 18 354 . . Siege Activations . | . . . . . . Robots Corrupted . | . . . . . . Combat Hostiles . | . . . . . . Parts Fried . | . . . . . . Impact Corruptions . | . . . . . . Robots Melted . | . . . . . . Combat Hostiles . | . . . . . . Parts Melted 4 | . . . 2 2 . Heat Transferred 3108 | . . . 2812 296 . Parts Sabotaged . | . . . . . . Parts Stolen . | . . . . . . Parts Stripped . | . . . . . . Power Chain Reactions . | . . . . . . Missiles Intercepted . | . . . . . . Alert | -11 -10 -10 -9 -9 -9 ------- Run | Scr Mat Min Mat Min Exi Peak Influence 392 | 10 319 246 392 240 . Average Influence 138 | 1 158 74 188 139 . Maximum Alert Level 1 | . 1 1 1 1 . Low Security (%) 66 | 100 52 88 53 74 . Level 1 33 | . 47 11 46 25 . Level 2 . | . . . . . . Level 3 . | . . . . . . Level 4 . | . . . . . . Level 5 . | . . . . . . High Security . | . . . . . . Max Security . | . . . . . . Squads Dispatched 3 | . 1 . 2 . . Investigation . | . . . . . . Extermination . | . . . . . . Reinforcement 3 | . 1 . 2 . . Assault . | . . . . . . Garrison . | . . . . . . Intercept . | . . . . . . Construction Impeded . | . . . . . . Haulers Reinforced . | . . . . . . Stealth | -11 -10 -10 -9 -9 -9 --------- Run | Scr Mat Min Mat Min Exi Distress Signals 7 | . 3 . 4 . . Communications Jammed . | . . . . . . Distress Signals . | . . . . . . Times Spotted 87 | . 25 5 46 5 6 Peak Tracking Total 7 | . 7 3 6 3 7 Tactical Retreats 7 | . 1 . 5 1 . Traps | -11 -10 -10 -9 -9 -9 ------- Run | Scr Mat Min Mat Min Exi Traps Triggered 1 | . . 1 . . . Indirectly . | . . . . . . Trap Hack Attempts . | . . . . . . Triggered . | . . . . . . Disarmed . | . . . . . . Reprogrammed . | . . . . . . Reused . | . . . . . . Traps Extracted . | . . . . . . Installed . | . . . . . . Triggered . | . . . . . . Machines | -11 -10 -10 -9 -9 -9 ---------- Run | Scr Mat Min Mat Min Exi Machines Disabled 6 | . . 1 2 . 3 Max in Single Turn 2 | . . 1 1 . 2 Machines Sabotaged . | . . . . . . Garrisons Compromised . | . . . . . . Overloaded Fab Kills . | . . . . . . Fab Network Shutdowns . | . . . . . . Hacking | -11 -10 -10 -9 -9 -9 --------- Run | Scr Mat Min Mat Min Exi Machines Accessed 14 | . 5 1 7 . 1 Terminals 11 | . 5 . 6 . . Fabricators . | . . . . . . Repair Stations 1 | . . . 1 . . Recycling Units . | . . . . . . Scanalyzers . | . . . . . . Garrison Access . | . . . . . . Total Hacks 33 | . 13 1 18 . 1 Successful 26 | . 11 1 13 . 1 Failed 7 | . 2 . 5 . . Catastrophic 1 | . . . 1 . . Database Lockouts . | . . . . . . Manual 22 | . 10 . 10 . 2 Terminals 29 | . 13 . 16 . . Fabricators . | . . . . . . Repair Stations 2 | . . . 2 . . Recycling Units . | . . . . . . Scanalyzers . | . . . . . . Garrison Access . | . . . . . . Terminal Hacks 17 | . 9 1 6 . 1 Record 1 | . . . . . 1 Part Schematic 1 | . 1 . . . . Robot Analysis 5 | . 3 . 2 . . Open Door 1 | . . 1 . . . Emergency Access Points 1 | . . . 1 . . Locate Traps 3 | . 3 . . . . Hauler Manifests 2 | . 1 . 1 . . Zone Layout 3 | . 1 . 2 . . Fabricator Hacks . | . . . . . . Repair Station Hacks 2 | . . . 2 . . Scan Component 1 | . . . 1 . . Repair 1 | . . . 1 . . Recycling Unit Hacks . | . . . . . . Scanalyzer . | . . . . . . Garrison Access Hacks . | . . . . . . Unauthorized Hacks 7 | . 2 . 5 . . Terminals 7 | . 2 . 5 . . Track 3 | . 2 . 1 . . Assimilate 1 | . . . 1 . . Botnet 2 | . . . 2 . . Operators 1 | . . . 1 . . Fabricators . | . . . . . . Repair Stations . | . . . . . . Recycling Units . | . . . . . . Scanalyzers . | . . . . . . Garrison Access . | . . . . . . Data Cores Recovered . | . . . . . . Used . | . . . . . . Hacking Detections 12 | . 5 . 7 . . Full Trace Events . | . . . . . . Feedback Events . | . . . . . . Feedback Blocked . | . . . . . . Robot Schematics Acquired . | . . . . . . Robots Built . | . . . . . . Matter . | . . . . . . Time . | . . . . . . Total Robot Build Rating . | . . . . . . Part Schematics Acquired 1 | . 1 . . . . Parts Built . | . . . . . . Matter . | . . . . . . Time . | . . . . . . Total Part Build Rating . | . . . . . . Parts Repaired 1 | . . . 1 . . Time 44 | . . . 44 . . Parts Recycled . | . . . . . . Recycled Matter . | . . . . . . Retrieved Matter . | . . . . . . Retrieved Components . | . . . . . . Parts Scanalyzed . | . . . . . . Part Schematics Acquired . | . . . . . . Parts Damaged . | . . . . . . Bothacking | -11 -10 -10 -9 -9 -9 ------------ Run | Scr Mat Min Mat Min Exi Used RIF Installer . | . . . . . . Robots Hacked . | . . . . . . Non-combat . | . . . . . . Combat . | . . . . . . Robot Hacks Applied . | . . . . . . Relay Couplers Released . | . . . . . . Robots Rewired . | . . . . . . Allies Hacked . | . . . . . . Hacks Repelled . | . . . . . . Allies | -11 -10 -10 -9 -9 -9 -------- Run | Scr Mat Min Mat Min Exi Total Allies 6 | . . 2 1 3 . Largest Group 4 | . . 2 2 4 4 Highest-Rated Group 53 | . . 53 53 50 50 Highest-Rated Ally 31 | . . 31 31 16 16 Total Orders 7 | . . . 2 2 3 STAY 4 | . . . 1 1 2 FOLLOW 3 | . . . 1 1 1 Ally Attacks 26 | . . . 9 7 10 Total Damage 316 | . . . 146 73 97 Kills 5 | . . . 2 2 1 Allies Corrupted . | . . . . . . Allies Melted . | . . . . . . Intel | -11 -10 -10 -9 -9 -9 ------- Run | Scr Mat Min Mat Min Exi Robot Analysis Total 5 | . 3 . 2 . . Derelict Logs Recovered 3 | . . 2 . 1 . Drone Launches . | . . . . . . Drone Recoveries . | . . . . . . Exploration | -11 -10 -10 -9 -9 -9 ------------- Run | Scr Mat Min Mat Min Exi Turns Passed 5996 | 192 1082 1337 1817 519 1049 Spaces Moved 2894 | 104 507 795 768 269 451 Core 12 | 12 . . . . . Treads 2701 | 92 507 795 587 269 451 Legs . | . . . . . . Wheels 181 | . . . 181 . . Hover . | . . . . . . Flight . | . . . . . . Fastest Speed 50 | 50 160 160 120 180 160 Average Speed 169 | 147 160 160 170 180 193 Slowest Speed 200 | 160 160 160 200 180 200 Overloaded Moves . | . . . . . . Propulsion Burnouts . | . . . . . . Robots Hopped . | . . . . . . Cave-ins Triggered . | . . . . . . Exploration Rate (%) 61 | 5 78 91 53 77 67 Regions Visited 5 Branch Regions 3 Pre-discovered Areas 3 | . . 1 . 1 1 Known Exits Taken . | . . . . . . Unknown Exits Taken 5 | 1 1 1 1 1 . Scrap Searched 4 | . . 3 . 1 . Spaces Dug . | . . . . . . Terrain Destroyed 17 | . . . 12 . 5 Melee . | . . . . . . Projectile 1 | . . . 1 . . AOE 16 | . . . 11 . 5 Actions | -11 -10 -10 -9 -9 -9 --------- Run | Scr Mat Min Mat Min Exi Total 3614 | 127 708 836 1083 295 565 Wait 333 | 6 154 14 131 17 11 Move 2889 | 103 506 794 767 268 451 Hop . | . . . . . . Pick Up 59 | 4 7 6 31 2 9 Fast Attach 13 | 7 . . 5 . 1 Attach 20 | . . 1 11 . 8 Detach 1 | . . . 1 . . Swap 21 | . 1 2 12 1 5 Drop 51 | . 1 5 21 2 22 Fire 211 | 7 39 14 104 5 42 Melee 16 | . . . . . 16 Ram . | . . . . . . Kick . | . . . . . . Crush . | . . . . . . Escape Stasis . | . . . . . . Rewire . | . . . . . . Trap . | . . . . . . Miscellaneous . | . . . . . . Route ------- -11/Scrapyard -10/Materials (discovered 4 exits: *Mat x2 / *Min x2) -10/Mines -9/Materials (discovered 2 exits: [*Mat] / [*Min]) -9/Mines (discovered 2 exits: [*Mat] / *Exi) -9/Exiles (discovered 1 exit: [*Min]) History --------- Turn | Location | Event 5 | -11/Scrapyard | Discovered new exit (range 16) 193 | -11/Scrapyard | Entered Materials 306 | -10/Materials | Discovered new exit (range 13) 306 | -10/Materials | Discovered new exit (range 20) 306 | -10/Materials | Discovered new exit (range 19) 308 | -10/Materials | Build established: Mutant 1110 | -10/Materials | Discovered new exit (range 8) 1275 | -10/Materials | Entered Mines 1333 | -10/Mines | Learned location of Zion (-6) 1430 | -10/Mines | Found a hidden stash of uninstalled traps 1803 | -10/Mines | Learned Materials terminal intel 1939 | -10/Mines | A weapon hastily lodged in a ceiling crevice suddenly fell to the ground 2206 | -10/Mines | Met a Derelict who couldn't figure out how to use a Trap Extractor 2593 | -10/Mines | Discovered new exit (range 11) 2612 | -10/Mines | Entered Materials 2612 | -9/Materials | Accompanied by 2 allies 2612 | -9/Materials | Evolved 2 slots: Utility x2 2613 | -9/Materials | Loaded intel: 12 terminal locations 2617 | -9/Materials | Led the pair of lost Derelicts to an unsafe place 2742 | -9/Materials | Lost 3 parts (1n2w) 3108 | -9/Materials | Discovered new exit (range 12) 3227 | -9/Materials | Repaired Imp. Trap Extractor? 3368 | -9/Materials | Lost 3 parts (1n2w) 3486 | -9/Materials | Discovered new exit (range 10) 3523 | -9/Materials | Build established: Hauler-Mutant 4429 | -9/Materials | Entered Mines 4429 | -9/Mines | Accompanied by 1 ally 4431 | -9/Mines | Assisted by bots powering up and referring to "LRC-V3" 4471 | -9/Mines | Discovered new exit (range 8) 4472 | -9/Mines | Learned location of Storage (-7) 4557 | -9/Mines | Learned location of 1 exit from Lower Caves 4698 | -9/Mines | Core integrity fell below 50% 4799 | -9/Mines | Found a damaged Exp. Sensor Array with a note attached 4805 | -9/Mines | Found Prototype Device 4933 | -9/Mines | Deemed a non-threat by the Exiles lab entrance 4933 | -9/Mines | Discovered new exit (range 5) 4948 | -9/Mines | Entered Exiles 4948 | -9/Exiles | Accompanied by 4 allies 4993 | -9/Exiles | Met 8R-AWN 5024 | -9/Exiles | Met EX-HEX 5153 | -9/Exiles | Met EX-DEC 5333 | -9/Exiles | Met EX-BIN 5604 | -9/Exiles | Discovered new exit (range 15) 5838 | -9/Exiles | Attacked by the Exiles 5848 | -9/Exiles | Allies destroyed EX-HEX 5943 | -9/Exiles | Core integrity fell below 20% 5997 | -9/Exiles | Destroyed by 8R-AWN with 8R-AWN's Boregun Last Messages --------------- 05967_ HV Slug penetrates Machine. 05967_ Penetrated by HV Slug. 05967_ HV Slug penetrates Wall. 05971_ 8R-AWN suffers critical hit. 05971_ Destroyed Prototype Leg. 05972_ Penetrated by HV Slug. 05976_ Critical hit. 05976_ Lgt. Deuterium Engine destroyed. 05976_ HV Slug penetrates Wall. 05980_ Penetrated by HV Slug. 05980_ HV Slug penetrates Wall. 05980_ Penetrated by HV Slug. 05980_ HV Slug penetrates Wall. 05987_ Penetrated by HV Slug. 05987_ Critical hit. 05987_ Lgt. Treads destroyed. 05987_ HV Slug penetrates Assembled Analyzer. 05992_ HV Slug penetrates Wall. 05992_ HV Slug penetrates Assembled Analyzer. 05997_ Penetrated by HV Slug. Map ----- +----------------------------------------------------+ | """????????????????????????????????????? | | """????????????????????????????????????? | | """????????????????????????????????????? | | """????????????????????????????????????? | | "X" """????????????????????????????????????? | | """ ?????????????????????????????????????? | | """""""""????????????????????????????????????? | | #######???????????????????????????????????????? | | #?????????????????????????????????????????????? | | #?????????????????????????????????????????????? | | ##????????#???????????????????????????????????? | | ##???#### ######?????????????????????????????? | | #####" " """"##????????????????????????????? | | "%""""##???????????????????????????? | | " #???????????????????????????? | | """#???????????????????????????? | | a"#???????????#####???????????? | | "##?????????##" #???????????? | | "###???????#" #???????????? | | " " #??????##" ##??????????? | | """ ###??### ###????????# | | ####""" !!! # #??# ########## | | ???##""" !%! !##?## #""""## | | ????#"" !%* !=!!/ ### | | ???##"" =%* ## | | ####"""" a @ #### | | #""" g ""#?#"""""#### | | "" #"""##?#######??#### | | ######??????????????### | | ##?????????????????????? | | " ##??????????????????????? | | "" " #???????????????????????? | | ##""" " " ""# % ##???????????????????????? | | ######""" """## #????????????????????????? | | #????###""""#### ## ##????????????????????????? | | ####???######??###?###??????????????????????????? | | "!#????????????????????????????????????????????? | | !#????????????????????????????????????????????? | | "#????????????????????????????????????????????? | | ""!"#????????????????????????????????????????????? | | #####????????????????????????????????????????????? | | ?????????????????????????????????????????????????? | | ?????????????????????????????????????????????????? | | ?????????????????????????????????????????????????? | | ?????????????????????????????????????????????????? | | ?????????????????????????????????????????????????? | | ?????????????????????????????????????????????????? | | ?????????????????????????????????????????????????? | | ?????????????????????????????????????????????????? | | ?????????????????????????????????????????????????? | +----------------------------------------------------+ Best States ------------- Heat Dissipation 42 Energy Generation 18 Energy Capacity 265 Matter Stores 300 Matter Capacity 300 Sight Range 16 Terrain Scan Density 10 Armor Coverage 150 Core Shielding 20 Evasion (%) 40 Recoil Reduction 2 Item Schematics ----------------- Hcp. Storage Unit | -10/Materials | Hacked Robot Schematics ------------------ None Fabricated ------------ Nothing Alien Tech Used ----------------- None Achievements -------------- None Challenges ------------ None Game ------ Seed AlloyWaveMeganuke Manual? 0 Play Time 00:38:40 Cumulative 149.2 hours Start 2020.06.25 @ 13:19:06 End 2020.06.25 @ 13:59:24 Sessions 1 Manual Loads 0 Difficulty Rogue Special Mode None Game No. 70 Rogue 70 Adventurer 0 Explorer 0 Win Type - Total 7 Types 6/0/0/1/0/0/0 Lore% 72 Gallery% 68 Achievement% 59 Wizard Run 0 Options --------- ASCII 1 Keyboard 0 Movement Numpad Keybinds 0 Fullscreen 1 Font 18/Cog Map View 76x50 Tactical HUD 1 Map Filters NONE Filters NONE Steam 1 RUN: c69e3f7b-0471-49d0-8535-af3b243facb9